{"text_format":"1","workbook":"xlsx","n_sheets":6,"sheets":["COVER PAGE","General Instructions","DATA","For Official Use Only","Institution_Codes","country name list"],"not_rendered":{"charts":0,"images":3,"macros":1,"external_links":4,"defined_names":396,"comments":0,"pivot_tables":0},"unopened":[],"bounds":{"document_bytes":16777216,"sheet_cells":100000,"rows_first":2000,"rows_last":500,"rows_between":2000,"halvings":0,"cell_chars":16384,"cell_head_chars":4096},"cells_cut":0,"cells_raw":0,"read":"whole","date_system":"1900"}

{"sheet":"COVER PAGE","index":0,"n_rows":16,"n_cols":4,"rows_kept":16,"cut":false,"hidden":false,"merged":[[13,3,13,4],[5,1,5,7],[9,1,9,2],[9,3,9,4],[9,5,9,7],[10,3,10,4],[11,1,11,7],[12,2,12,5],[8,1,8,7],[1,1,1,7],[2,1,2,7],[3,1,3,7],[6,1,6,7],[7,1,7,7]]}
[]
[null,"CENTRAL BANK OF TRINIDAD AND TOBAGO "]
[null,"CB 01/2 - V1.0"]
[null,"COMMERCIAL BANKS' FOREIGN CURRENCY TRANSACTIONS -"]
[null,null,null,"PRIVATE TRANSFERS"]
[null,"INFLOW ANALYSIS - SALES OF FOREIGN CURRENCY (CASH AND NON-CASH)"]
[null,"FOR "]
[null,"Select Institution"]
[null,"For the Month Ended:"]
[null,"Month",null,"June"]
[null,null,"Year",2024]
[null,"Date Submitted:"]
[null,null,"2024-10-27"]
[null,null,null,"Type - mm/dd/yyyy"]
[null,"File Date Check"]
[null,{"$f":"TEXT(DATE(LEFT(MID(LEFT(TEXT(MID(CELL(\"filename\",'COVER PAGE'!A1),FIND(\"[\",CELL(\"filename\",'COVER PAGE'!A1))+1,FIND(\"]\",CELL(\"filename\",'COVER PAGE'!A1))-FIND(\"[\",CELL(\"filename\",'COVER PAGE'!A1))-1),LEN(MID(CELL(\"filename\",'COVER PAGE'!A1),FIND(\"[\",CELL(\"filename\",'COVER PAGE'!A1))+1,FIND(\"]\",CELL(\"filename\",'COVER PAGE'!A1))-FIND(\"[\",CELL(\"filename\",'COVER PAGE'!A1))-1))),FIND(\".xlsx\",TEXT(MID(CELL(\"filename\",'COVER PAGE'!A1),FIND(\"[\",CELL(\"filename\",'COVER PAGE'!A1))+1,FIND(\"]\",CELL(\"filename\",'COVER PAGE'!A1))-FIND(\"[\",CELL(\"filename\",'COVER PAGE'!A1))-1),LEN(MID(CELL(\"filename\",'COVER PAGE'!A1),FIND(\"[\",CELL(\"filename\",'COVER PAGE'!A1))+1,FIND(\"]\",CELL(\"filename\",'COVER PAGE'!A1))-FIND(\"[\",CELL(\"filename\",'COVER PAGE'!A1))-1))))-1),FIND(\"~\",SUBSTITUTE(TEXT(MID(CELL(\"filename\",'COVER PAGE'!A1),FIND(\"[\",CELL(\"filename\",'COVER PAGE'!A1))+1,FIND(\"]\",CELL(\"filename\",'COVER PAGE'!A1))-FIND(\"[\",CELL(\"filename\",'COVER PAGE'!A1))-1),LEN(MID(CELL(\"filename\",'COVER PAGE'!A1),FIND(\"[\",CELL(\"filename\",'COVER PAGE'!A1))+1,FIND(\"]\",CELL(\"filename\",'COVER PAGE'!A1))-FIND(\"[\",CELL(\"filename\",'COVER PAGE'!A1))-1))),\"_\",\"~\",3))+1,LEN(TEXT(MID(CELL(\"filename\",'COVER PAGE'!A1),FIND(\"[\",CELL(\"filename\",'COVER PAGE'!A1))+1,FIND(\"]\",CELL(\"filename\",'COVER PAGE'!A1))-FIND(\"[\",CELL(\"filename\",'COVER PAGE'!A1))-1),LEN(MID(CELL(\"filename\",'COVER PAGE'!A1),FIND(\"[\",CELL(\"filename\",'COVER PAGE'!A1))+1,FIND(\"]\",CELL(\"filename\",'COVER PAGE'!A1))-FIND(\"[\",CELL(\"filename\",'COVER PAGE'!A1))-1))))),4),MID(MID(LEFT(TEXT(MID(CELL(\"filename\",'COVER PAGE'!A1),FIND(\"[\",CELL(\"filename\",'COVER PAGE'!A1))+1,FIND(\"]\",CELL(\"filename\",'COVER PAGE'!A1))-FIND(\"[\",CELL(\"filename\",'COVER PAGE'!A1))-1),LEN(MID(CELL(\"filename\",'COVER PAGE'!A1),FIND(\"[\",CELL(\"filename\",'COVER PAGE'!A1))+1,FIND(\"]\",CELL(\"filename\",'COVER PAGE'!A1))-FIND(\"[\",CELL(\"filename\",'COVER PAGE'!A1))-1))),FIND(\".xlsx\",TEXT(MID(CELL(\"filename\",'COVER PAGE'!A1),FIND(\"[\",CELL(\"filename\",'COVER PAGE'!A1))+1,FIND(\"]\",CELL(\"filename\",'COVER PAGE'!A1))-FIND(\"[\",CELL(\"filename\",'COVER PAGE'!A1))-1),LEN(MID(CELL(\"filename\",'COVER PAGE'!A1),FIND(\"[\",CELL(\"filename\",'COVER PAGE'!A1))+1,FIND(\"]\",CELL(\"filename\",'COVER PAGE'!A1))-FIND(\"[\",CELL(\"filename\",'COVER PAGE'!A1))-1))))-1),FIND(\"~\",SUBSTITUTE(TEXT(MID(CELL(\"filename\",'COVER PAGE'!A1),FIND(\"[\",CELL(\"filename\",'COVER PAGE'!A1))+1,FIND(\"]\",CELL(\"filename\",'COVER PAGE'!A1))-FIND(\"[\",CELL(\"filename\",'COVER PAGE'!A1))-1),LEN(MID(CELL(\"filename\",'COVER PAGE'!A1),FIND(\"[\",CELL(\"filename\",'COVER PAGE'!A1))+1,FIND(\"]\",CELL(\"filename\",'COVER PAGE'!A1))-FIND(\"[\",CELL(\"filename\",'COVER PAGE'!A1))-1))),\"_\",\"~\",3))+1,LEN(TEXT(MID(CELL(\"filename\",'COVER PAGE'!A1),FIND(\"[\",CELL(\"filename\",'COVER PAGE'!A1))+1,FIND(\"]\",CELL(\"filename\",'COVER PAGE'!A1))-FIND(\"[\",CELL(\"filename\",'COVER PAGE'!A1))-1),LEN(MID(CELL(\"filename\",'COVER PAGE'!A1),FIND(\"[\",CELL(\"filename\",'COVER PAGE'!A1))+1,FIND(\"]\",CELL(\"filename\",'COVER PAGE'!A1))-FIND(\"[\",CELL(\"filename\",'COVER PAGE'!A1))-1))))),5+1,LEN(MID(LEFT(TEXT(MID(CELL(\"filename\",'COVER PAGE'!A1),FIND(\"[\",CELL(\"filename\",'COVER PAGE'!A1))+1,FIND(\"]\",CELL(\"filename\",'COVER PAGE'!A1))-FIND(\"[\",CELL(\"filename\",'COVER PAGE'!A1))-1),LEN(MID(CELL(\"filename\",'COVER PAGE'!A1),FIND(\"[\",CELL(\"filename\",'COVER PAGE'!A1))+1,FIND(\"]\",CELL(\"filename\",'COVER PAGE'!A1))-FIND(\"[\",CELL(\"filename\",'COVER PAGE'!A1))-1))),FIND(\".xlsx\",TEXT(MID(CELL(\"filename\",'COVER PAGE'!A1),FIND(\"[\",CELL(\"filename\",'COVER PAGE'!A1))+1,FIND(\"]\",CELL(\"filename\",'COVER PAGE'!A1))-FIND(\"[\",CELL(\"filename\",'COVER PAGE'!A1))-1),LEN(MID(CELL(\"filename\",'COVER PAGE'!A1),FIND(\"[\",CELL(\"filename\",'COVER PAGE'!A1))+1,FIND(\"]\",CELL(\"filename\",'COVER PAGE'!A1))-FIND(\"[\",CELL(\"filename\",'COVER PAGE'!A1))-1))))-1),FIND(\"~\",SUBSTITUTE(TEXT(MID(CELL(\"filename\",'COVER PAGE'!A1),FIND(\"[\",CELL(\"filename\",'COVER PAGE'!A1))+1,FIND(\"]\",CELL(\"filename\",'COVER PAGE'!A1))-FIND(\"[\",CELL(\"filename\",'COVER PAGE'!A1))-1),LEN(MID(CELL(\"filename\",'COVER PAGE'!A1),FIND(\"[\",CELL(\"filename\",'COVER PAGE'!A1))+1,FIND(\"]\",CELL(\"filename\",'COVER PAGE'!A1))-FIND(\"[\",CELL(\"filename\",'COVER PAGE'!A1))-1))),\"_\",\"~\",3))+1,LEN(TEXT(MID(CELL(\"filename\",'COVER PAGE'!A1),FIND(\"[\",CELL(\"filename\",'COVER PAGE'!A1))+1,FIND(\"]\",CELL(\"filename\",'COVER PAGE'!A1))-FIND(\"[\",CELL(\"filename\",'COVER PAGE'!A1))-1),LEN(MID(CELL(\"filename\",'COVER PAGE'!A1),FIND(\"[\",CELL(\"filename\",'COVER PAGE'!A1))+1,FIND(\"]\",CELL(\"filename\",'COVER PAGE'!A1))-FIND(\"[\",CELL(\"filename\",'COVER PAGE'!A1))-1))))))),\"1\"),\"yyyy-MM-dd\") =(TEXT(TEXT(DATE('COVER PAGE'!D11,MONTH(DATEVALUE('COVER PAGE'!D10 & 1)),\"1\"),\"MMM-YYYY\"),\"yyyy-MM-dd\"))","v":{"$error":"#VALUE!"}}]

{"sheet":"General Instructions","index":1,"n_rows":70,"n_cols":11,"rows_kept":70,"cut":false,"hidden":false,"merged":[[45,2,45,12],[43,2,43,11],[44,2,44,11],[17,2,17,3],[18,2,18,3],[19,2,19,3],[19,4,19,10],[18,4,18,10],[12,2,12,3],[13,2,13,3],[14,2,14,3],[15,2,15,3],[16,2,16,3],[69,1,69,11],[63,1,63,11],[55,1,55,11],[56,1,56,11],[57,1,57,11],[58,1,58,11],[59,1,59,11],[66,1,66,11],[65,1,65,11],[67,1,67,11],[64,1,64,11],[68,1,68,11],[49,1,49,11],[50,1,50,11],[52,1,52,11],[54,1,54,11],[62,1,62,11],[3,10,3,11],[4,10,4,11],[6,0,6,11],[42,2,42,11],[9,0,9,11],[24,2,24,11],[23,1,23,11],[7,1,7,11],[11,4,11,10],[12,4,12,10],[13,4,13,10],[14,4,14,10],[15,4,15,10],[16,4,16,10],[17,4,17,10],[11,2,11,3]]}
[]
[]
[]
[null,null,null,null,null,null,null,null,null,null,"CONFIDENTIAL"]
[null,null,null,null,null,null,null,null,null,null,"CB 01/2 - V1.0"]
[]
["Commercial Banks’ Foreign Currency Transactions – Private Transfers"]
[null,"(Please read instructions carefully)"]
[]
["Required under authority of the Statistics Act, Chapter 19:02 and Section 3 (3), (b), (e) of the Central Bank Act, Chapter 79:02"]
[]
[null,null,"Name of Institution:",null,{"$f":"'COVER PAGE'!B8","v":"Select Institution"}]
[null,null,"Department:"]
[null,null,"Contact Person:"]
[null,null,"Email:"]
[null,null,"Telephone:"]
[null,null,"Fax:"]
[null,null,"Reporting Period:",null,{"$f":"CONCATENATE('COVER PAGE'!D10,\" \",'COVER PAGE'!D11)","v":"June 2024"}]
[null,null,"Date Submitted:",null,{"$f":"'COVER PAGE'!C13","v":"2024-10-27"}]
[null,null,"Company Stamp:"]
[]
[null," "]
[null,"Instructions:"]
[null,"This reporting form is intended to obtain information related to all foreign currency transactions between residents and non-residents of Trinidad and Tobago.  A resident individual is a person residing in Trinidad and Tobago for one year or more, regardless of nationality.  Non-residents are essentially all other persons living or operating (or intending to live or operate) outside of Trinidad and Tobago for a year or more, even if they hold Trinidad and Tobago nationality. \nSection I relates to a series of different types of transactions, some of which are defined in this Instruction tab.  Section II requires information on migrant remittances only.\n"]
[null,"1.","This form is to be completed monthly and should be submitted within ten (10) working days from the end of the period to which it relates to:"]
[null,null,null,"The Manager"]
[null,null,null,"Statistics Department"]
[null,null,null,"Central Bank of Trinidad and Tobago"]
[null,null,null,"P.O. Box 1250"]
[null,null,null,"PORT OF SPAIN"]
[null,null,null,"Attention: BOP Unit"]
[]
[null,null,"Or ","Email to: bop@central-bank.org.tt",null,null,null,null,null,"Or","Fax to: 627-4010."]
[]
[]
[null,"2.","All enquires should be directed to: Balance of Payments Unit, Statistics Department."]
[]
[null,null,"Contact Name",null,null,"Telephone"]
[null,null,"Darryl Gouveia",null,null,"621-CBTT(2288), ext. 4896"]
[null,null,"Krishendath Ramlochan",null,null,"621-CBTT(2288), ext. 4894"]
[]
[]
[null,"3.","Please submit all data in thousands of United States Dollars (US$ '000s), unless otherwise specified.  This reporting form requires data concerning all foreign transactions (including both cash/over-the-counter transactions and account-to-account/non-cash transactions), converted to and reported in US dollars.   "]
[null,"4.","Select the \"Convert to (.xlsx) and Save\" button at the top of this page to save the final version for submission.  "]
[null,"5.","Use the file name structure \"Company Code_CB01_V1.0_YYYYM##\" (example - 2023M12 is the date format for December 2023). Note all files sent to institutions will have the company code. "]
[null,"6.","After saving as an 'xlsx' file with the file name structure above, select the date on the 'COVER PAGE' which must be consistent with the date in the name of the file. Click 'save'. The 'Date Check' must be 'TRUE'."]
[null,"7.","Once the steps above are completed the submission can be uploaded into GoAnywhere."]
[null,"8.","Do not amend the structure/format."]
[]
[null,"Selected Definitions of Types of Transactions"]
[null,"Code 02: Transactions for Travel include expenditure for goods and services for own use or to be given away, acquired from an economy, by non-residents during visits to that economy. Visits can be any length of stay, provided that there is no change in residence.  Travel transactions include payments by all persons going abroad for holidays, recreational and cultural activities, visits to friends and relations, and pilgrimages.  "]
[]
[null,"Code 03: Medical Expenses include expenditure for medical services, other health care, food, accommodation and local transport, acquired by persons travelling for medical reasons."]
[]
[null,"Code 04: Education includes expenditure for tuition, food, accommodation, local transport and health services, acquired by non-resident students."]
[null,"Code 05: Management/Professional Fees include payments for the following:"]
[null,"legal services (legal advisory and representation services in any legal, judicial and statutory procedures; drafting services for legal documentation and instruments; certification consultancy; and escrow and settlement services); "]
[null,"accounting, auditing, bookkeeping, and tax consulting services (recording of commercial transactions for businesses and others; examination services for accounting records and financial statements; business tax planning and consulting; and preparation of tax documents);  "]
[null,"business and management consulting and public relations services (management auditing; market management, human resources, production management and project management consulting); and "]
[null,"advertising, market research, and public opinion polling services (design, creation and marketing of advertisements by advertising agencies; media placement, including the purchase and sale of advertising space; exhibition services provided by trade fairs; the promotion of products abroad; market research; telemarketing; and public opinion polling on various issues)."]
[]
[null,"Code 06: Royalties, Copyright, Patent Fees include charges for:"]
[null,"the use of proprietary rights, such as patents, trademarks, copyrights, industrial processes and designs, trade secrets, and franchises, where rights arise from research and development, as well as from marketing; and "]
[null,"licences to reproduce and/or distribute intellectual property embodied in produced originals or prototypes, such as copyrights on books and manuscripts, computer software, cinematographic works and sound recordings, and related rights, such as for the recording of live performances and for television, cable or satellite broadcast."]
[null,"Code 07: Non-merchandise Insurance includes direct insurance; reinsurance; and auxiliary insurance. It excludes freight insurance."]
[null,"Code 10: Migrant Remittances are current transfers made or received by residents to or from non-residents."]
[null,"Code 13: Portfolio Investment is defined as cross border transactions and positions involving debt or equity securities, other than those included in direct investment or reserve assets. Direct investment occurs where the transactions reach or surpass the threshold of 10 per cent or more of voting power. "]
[null,"Code 15: Compensation of Employees refers to the income of border, seasonal, and other short-term workers who work in an economy where they are not resident, and to the income of resident workers who are employed by a non-resident entity."]
[null,"Code 16: Credit Cards include all foreign currency transactions conducted using credit cards."]
[null,"Sources: The International Monetary Fund's Balance of Payments and International Investment Position Manual (6th Edition) and the Manual on Statistics of International Trade in Services 2010 (MSITS 2010)."]

{"sheet":"DATA","index":2,"n_rows":89,"n_cols":9,"rows_kept":89,"cut":false,"hidden":false,"merged":[[88,7,88,8],[76,4,76,6],[68,4,68,6],[69,4,69,6],[70,4,70,6],[74,4,74,6],[75,4,75,6],[71,4,71,8],[77,4,77,6],[78,4,78,6],[82,7,82,8],[87,7,87,8],[80,4,80,8],[64,4,64,6],[65,4,65,6],[60,4,60,6],[59,4,59,8],[67,4,67,8],[7,4,7,8],[9,4,9,8],[10,4,10,8],[48,4,48,8],[50,4,50,8],[15,4,15,8],[16,4,16,8],[57,4,57,6],[83,7,83,8],[8,4,8,8],[51,4,51,6],[49,4,49,8],[53,4,53,6],[54,4,54,6],[55,4,55,6],[56,4,56,6],[66,4,66,6],[58,4,58,6],[72,4,72,6],[73,4,73,6],[61,4,61,6],[62,4,62,6],[63,4,63,6]]}
[]
[]
[]
[]
[null,null,null,null,null,null,null,null,"CONFIDENTIAL"]
[null,null,null,null,null,null,null,null,"CB 01/2 - V1.0"]
[]
[null,null,null,null,"COMMERCIAL BANKS' FOREIGN CURRENCY TRANSACTIONS -"]
[null,null,null,null,"PRIVATE TRANSFERS"]
[null,null,null,null,"INFLOW ANALYSIS - PURCHASES OF FOREIGN CURRENCY (CASH AND NON-CASH)"]
[]
[]
[null,null,null,null,"NAME OF INSTITUTION : ",null,null,{"$f":"'COVER PAGE'!B8","v":"Select Institution"}]
[null,null,null,null,"REPORTING PERIOD  :",null,null,{"$f":"CONCATENATE('COVER PAGE'!D10, \" \",'COVER PAGE'!D11)","v":"June 2024"}]
[]
[null,null,null,null,"SECTION I"]
[null,null,null,null,"Please refer to the General Instructions tab for selected definitions of types of transactions"]
[]
[null,null,null,null,"CODE",null,"TYPE OF TRANSACTION ","CASH TRANSACTIONS US$'000","NON-CASH TRANSACTIONS US$'000"]
[null,null,null,null,"01",null,"Goods"]
[null,null,null,null,"02"," ","Travel"]
[null,null,null,null,"03",null,"Medical Expenses"]
[null,null,null,null,"04",null,"Education"]
[null,null,null,null,"05",null,"Management/Professional Fees"]
[null,null,null,null,"06",null,"Royalties, Copyright, Patent Fees"]
[null,null,null,null,"07",null,"Non-merchandise Insurance"]
[null,null,null,null,"08",null,"Dividends, Profits"]
[null,null,null,null,"09",null,"Interest"]
[null,null,null,null,"10",null,"Migrant Remittances"]
[null,null,null,null,"11",null,"Gifts and Donations"]
[null,null,null,null,"12",null,"Repayment of Loans"]
[null,null,null,null,"13",null,"Portfolio Investments"]
[null,null,null,null,"14",null,"Pensions/Social Security"]
[null,null,null,null,"15",null,"Compensation of Employees"]
[null,null,null,null,"16",null,"Credit Cards"]
[null,null,null,null,17,null,"Other (please specify)"]
[null,null,null,null,null,null,"TOTAL",{"$f":"SUM(H20:H36)","v":0},{"$f":"SUM(I20:I36)","v":0}]
[]
[]
[]
[]
[]
[]
[]
[]
[]
[]
[]
[null,null,null,null,"SECTION II"]
[null,null,null,null,"Section II refers to Migrant Remittances ONLY"]
[]
[null,null,null,null,"MONEY TRANSFERS RECEIVED FROM ABROAD",null,null,"CASH TRANSACTIONS ","NON-CASH TRANSACTIONS "]
[null,null,null,null,"Total VOLUME (number) of Transactions - '000s"]
[null,null,null,null,"   Of which transfers to (Please list top 5 countries)"]
[]
[]
[]
[]
[]
[]
[null,null,null,null,"Total VALUE of Transactions - US$'000"]
[null,null,null,null,"Of which transfers to (Please list top 5 countries)"]
[]
[]
[]
[]
[]
[]
[null,null,null,null,"Average Transaction Size of Funds Received in TT$"]
[null,null,null,null,"   Cross Border Transaction"]
[null,null,null,null,"   Domestic Transaction"]
[]
[null,null,null,null,"Bank Fee/ Service Charge "]
[null,null,null,null,"How much does the customer pay to receive the following sums of money from the United States of America?"]
[null,null,null,null,"   equivalent to US$10"]
[null,null,null,null,"   equivalent to US$200"]
[null,null,null,null,"   equivalent to US$500"]
[null,null,null,null,"   equivalent to US$1,000"]
[null,null,null,null,"   equivalent to US$5,000"]
[]
[]
[]
[null,null,null,null,"………………………………………..",null,null,"…………………………………………………"]
[null,null,null,null,"Name of Authorised Official ",null,null,"Signature"]
[]
[]
[]
[null,null,null,null,"………………………………………..",null,null,"…………………………………….."]
[null,null,null,null,"Position or Office Held",null,null,"Date"]

{"sheet":"For Official Use Only","index":3,"n_rows":37,"n_cols":4,"rows_kept":37,"cut":false,"hidden":true,"merged":[]}
["CODE","TYPE OF TRANSACTION ","CASH ","NON-CASH "]
["01","Goods",{"$f":"DATA!H20","v":0},{"$f":"DATA!I20","v":0}]
["02","Travel",{"$f":"DATA!H21","v":0},{"$f":"DATA!I21","v":0}]
["03","Medical Expenses",{"$f":"DATA!H22","v":0},{"$f":"DATA!I22","v":0}]
["04","Education",{"$f":"DATA!H23","v":0},{"$f":"DATA!I23","v":0}]
["05","Management/Professional Fees",{"$f":"DATA!H24","v":0},{"$f":"DATA!I24","v":0}]
["06","Royalties, Copyright, Patent Fees",{"$f":"DATA!H25","v":0},{"$f":"DATA!I25","v":0}]
["07","Non-merchandise Insurance",{"$f":"DATA!H26","v":0},{"$f":"DATA!I26","v":0}]
["08","Dividends, Profits",{"$f":"DATA!H27","v":0},{"$f":"DATA!I27","v":0}]
["09","Interest",{"$f":"DATA!H28","v":0},{"$f":"DATA!I28","v":0}]
["10","Migrant Remittances",{"$f":"DATA!H29","v":0},{"$f":"DATA!I29","v":0}]
["11","Gifts and Donations",{"$f":"DATA!H30","v":0},{"$f":"DATA!I30","v":0}]
["12","Repayment of Loans",{"$f":"DATA!H31","v":0},{"$f":"DATA!I31","v":0}]
["13","Portfolio Investments",{"$f":"DATA!H32","v":0},{"$f":"DATA!I32","v":0}]
["14","Pensions/Social Security",{"$f":"DATA!H33","v":0},{"$f":"DATA!I33","v":0}]
["15","Compensation of employees",{"$f":"DATA!H34","v":0},{"$f":"DATA!I34","v":0}]
[17,"Other (please specify)",{"$f":"DATA!H36","v":0},{"$f":"DATA!I36","v":0}]
[]
[null,"MONEY TRANSFERS SENT ABROAD","CASH ","NON-CASH "]
[null,"Total VOLUME (number) of Transactions - '000s",{"$f":"DATA!H53","v":0},{"$f":"DATA!I53","v":0}]
[]
[null,"Total VALUE of Transactions - US$'000",{"$f":"DATA!H61","v":0},{"$f":"DATA!I61","v":0}]
[]
[null,"Average Transaction size of funds sent in TT$",{"$f":"DATA!H69","v":0},{"$f":"DATA!I69","v":0}]
[null,"   Cross Border Transaction",{"$f":"DATA!H70","v":0},{"$f":"DATA!I70","v":0}]
[null,"   Domestic Transaction",{"$f":"DATA!H71","v":0},{"$f":"DATA!I71","v":0}]
[]
[null,"Bank Fee/ Service Charge "]
[null,"How much does the customer pay to send the following sums of money to the United States of America?"]
[null,"   equivalent to US$10",{"$f":"DATA!H75","v":0},{"$f":"DATA!I75","v":0}]
[null,"   equivalent to US$200",{"$f":"DATA!H76","v":0},{"$f":"DATA!I76","v":0}]
[null,"   equivalent to US$500",{"$f":"DATA!H77","v":0},{"$f":"DATA!I77","v":0}]
[null,"   equivalent to US$1,000",{"$f":"DATA!H78","v":0},{"$f":"DATA!I78","v":0}]
[null,"   equivalent to US$5,000",{"$f":"DATA!H79","v":0},{"$f":"DATA!I79","v":0}]
[]
["CODE","TYPE OF TRANSACTION ","CASH ","NON-CASH "]
[16,"Credit Cards",{"$f":"DATA!H35","v":0},{"$f":"DATA!I35","v":0}]

{"sheet":"Institution_Codes","index":4,"n_rows":53,"n_cols":9,"rows_kept":53,"cut":false,"hidden":true,"merged":[]}
["Select Institution","-",null,"Quarter",null,null,null,"Year"]
["ANSA Bank Limited ","BBDA",null,"Select Month",null,null,null,"Select Year","00"]
["CIBC Caribbean Bank Limited (Trinidad and Tobago)","CITI",null,"January",1,null,null,2000,"01"]
["Citibank (Trinidad & Tobago) Limited","CITI",null,"February",2,null,null,2001,"02"]
["First Citizens Bank Limited","FCB",null,"March",3,null,null,2002,"03"]
["JMMB Bank (T&T) Limited ","ICBL",null,"April",4,null,null,2003,"04"]
["RBC Royal Bank (Trinidad and Tobago) Limited","RBTT",null,"May",5,null,null,2004,"05"]
["Republic Bank Limited ","RBL",null,"June",6,null,null,2005,"06"]
["Scotiabank Trinidad and Tobago Limited ","BNS",null,"July",7,null,null,2006,"07"]
[null,null,null,"August",8,null,null,2007,"08"]
[null,null,null,"September",9,null,null,2008,"09"]
[null,null,null,"October",10,null,null,2009,"10"]
[null,null,null,"November",11,null,null,2010,"11"]
[null,null,null,"December",12,null,null,2011,"12"]
[null,null,null,null,null,null,null,2012,"13"]
[null,null,null,null,null,null,null,2013,"14"]
[null,null,null,null,null,null,null,2014,"15"]
[null,null,null,null,null,null,null,2015,"16"]
[null,null,null,null,null,null,null,2016,"17"]
[null,null,null,null,null,null,null,2017,"18"]
[null,null,null,null,null,null,null,2018,"19"]
[null,null,null,null,null,null,null,2019,"20"]
[null,null,null,null,null,null,null,2020,"21"]
[null,null,null,null,null,null,null,2021,"22"]
[null,null,null,null,null,null,null,2022,"23"]
[null,null,null,null,null,null,null,2023,"24"]
[null,null,null,null,null,null,null,2024,"25"]
[null,null,null,null,null,null,null,2025,"26"]
[null,null,null,null,null,null,null,2026,"27"]
[null,null,null,null,null,null,null,2027,"28"]
[null,null,null,null,null,null,null,2028,"29"]
[null,null,null,null,null,null,null,2029,"30"]
[null,null,null,null,null,null,null,2030,"31"]
[null,null,null,null,null,null,null,2031,"32"]
[null,null,null,null,null,null,null,2032,"33"]
[null,null,null,null,null,null,null,2033,"34"]
[null,null,null,null,null,null,null,2034,"35"]
[null,null,null,null,null,null,null,2035,"36"]
[null,null,null,null,null,null,null,2036,"37"]
[null,null,null,null,null,null,null,2037,"38"]
[null,null,null,null,null,null,null,2038,"39"]
[null,null,null,null,null,null,null,2039,"40"]
[null,null,null,null,null,null,null,2040,"41"]
[null,null,null,null,null,null,null,2041,"42"]
[null,null,null,null,null,null,null,2042,"43"]
[null,null,null,null,null,null,null,2043,"44"]
[null,null,null,null,null,null,null,2044,"45"]
[null,null,null,null,null,null,null,2045,"46"]
[null,null,null,null,null,null,null,2046,"47"]
[null,null,null,null,null,null,null,2047,"48"]
[null,null,null,null,null,null,null,2048,"49"]
[null,null,null,null,null,null,null,2049,"50"]
[null,null,null,null,null,null,null,2050]

{"sheet":"country name list","index":5,"n_rows":194,"n_cols":1,"rows_kept":194,"cut":false,"hidden":true,"merged":[]}
[]
["Afghanistan"]
["Albania"]
["Algeria"]
["Angola"]
["Antigua and Barbuda"]
["Argentina"]
["Armenia"]
["Australia"]
["Austria"]
["Azerbaijan"]
["The Bahamas"]
["Bahrain"]
["Bangladesh"]
["Barbados"]
["Belarus"]
["Belgium"]
["Belize"]
["Benin"]
["Bhutan"]
["Bolivia"]
["Bosnia and Herzegovina"]
["Botswana"]
["Brazil"]
["British Virgin Islands"]
["Brunei Darussalam"]
["Bulgaria"]
["Burkina Faso"]
["Burundi"]
["Cabo Verde"]
["Cambodia"]
["Cameroon"]
["Canada"]
["Cayman Island"]
["Central African Republic"]
["Chad"]
["Chile"]
["China"]
["Colombia"]
["Comoros"]
["Democratic Republic of the Congo"]
["Republic of Congo"]
["Costa Rica"]
["Côte d'Ivoire"]
["Croatia"]
["Cyprus"]
["Czech Republic"]
["Denmark"]
["Djibouti"]
["Dominica"]
["Dominican Republic"]
["Ecuador"]
["Egypt"]
["El Salvador"]
["Equatorial Guinea"]
["Eritrea"]
["Estonia"]
["Ethiopia"]
["Fiji"]
["Finland"]
["France"]
["Gabon"]
["The Gambia"]
["Georgia"]
["Germany"]
["Ghana"]
["Greece"]
["Grenada"]
["Guatemala"]
["Guinea"]
["Guinea-Bissau"]
["Guyana"]
["Haiti"]
["Honduras"]
["Hong Kong SAR"]
["Hungary"]
["Iceland"]
["India"]
["Indonesia"]
["Islamic Republic of Iran"]
["Iraq"]
["Ireland"]
["Israel"]
["Italy"]
["Jamaica"]
["Japan"]
["Jordan"]
["Kazakhstan"]
["Kenya"]
["Kiribati"]
["Korea"]
["Kosovo"]
["Kuwait"]
["Kyrgyz Republic"]
["Lao P.D.R."]
["Latvia"]
["Lebanon"]
["Lesotho"]
["Liberia"]
["Libya"]
["Lithuania"]
["Luxembourg"]
["FYR Macedonia"]
["Madagascar"]
["Malawi"]
["Malaysia"]
["Maldives"]
["Mali"]
["Malta"]
["Marshall Islands"]
["Mauritania"]
["Mauritius"]
["Mexico"]
["Micronesia"]
["Moldova"]
["Mongolia"]
["Montenegro"]
["Morocco"]
["Mozambique"]
["Myanmar"]
["Namibia"]
["Nepal"]
["Netherlands"]
["Netherland Antilles"]
["New Zealand"]
["Nicaragua"]
["Niger"]
["Nigeria"]
["Norway"]
["Oman"]
["Pakistan"]
["Palau"]
["Panama"]
["Papua New Guinea"]
["Paraguay"]
["Peru"]
["Philippines"]
["Poland"]
["Portugal"]
["Puerto Rico"]
["Qatar"]
["Romania"]
["Russia"]
["Rwanda"]
["Samoa"]
["San Marino"]
["São Tomé and Príncipe"]
["Saudi Arabia"]
["Senegal"]
["Serbia"]
["Seychelles"]
["Sierra Leone"]
["Singapore"]
["Slovak Republic"]
["Slovenia"]
["Solomon Islands"]
["South Africa"]
["South Sudan"]
["Spain"]
["Sri Lanka"]
["St. Kitts and Nevis"]
["St. Lucia"]
["St. Vincent and the Grenadines"]
["Sudan"]
["Suriname"]
["Swaziland"]
["Sweden"]
["Switzerland"]
["Syria"]
["Taiwan Province of China"]
["Tajikistan"]
["Tanzania"]
["Thailand"]
["Timor-Leste"]
["Togo"]
["Tonga"]
["Tunisia"]
["Turkey"]
["Turkmenistan"]
["Tuvalu"]
["Uganda"]
["Ukraine"]
["United Arab Emirates"]
["U.K."]
["U.S.A."]
["Uruguay"]
["US Virgin Islands"]
["Uzbekistan"]
["Vanuatu"]
["Venezuela"]
["Vietnam"]
["Yemen"]
["Zambia"]
["Zimbabwe"]